[Event "Titled Tuesday Blitz November 22 Early 2022"]
[White "Goncalves, Davi Sulzbacher"]
[Black "Rosenberg, Evan S"]
[WhiteFideId "2154510"]
[BlackFideId "2019299"]
[WhiteElo "2182"]
[BlackElo "2348"]
[Result "1-0"]
[Round "04"]
[TimeControl "180+1"]
[Date "2022.11.23"]
[WhiteClock "0:00:17"]
[BlackClock "0:00:08"]

1. Nf3 {[%clk 0:02:57]}  d5 {[%clk 0:02:59]} 2. g3 {[%clk 0:02:58]}  Nd7 {[%clk 0:02:58]} 3. d4 {[%clk 0:02:57]}  Nb6 {[%clk 0:02:58]} 4. a4 {[%clk 0:02:56]}  a5 {[%clk 0:02:58]} 5. Bg2 {[%clk 0:02:55]}  Nf6 {[%clk 0:02:57]} 6. O-O {[%clk 0:02:54]}  Bf5 {[%clk 0:02:58]} 7. b3 {[%clk 0:02:51]}  e6 {[%clk 0:02:56]} 8. Nbd2 {[%clk 0:02:50]}  h6 {[%clk 0:02:56]} 9. c4 {[%clk 0:02:45]}  Bb4 {[%clk 0:02:42]} 10. Bb2 {[%clk 0:02:30]}  c6 {[%clk 0:02:38]} 11. Ne5 {[%clk 0:02:23]}  O-O {[%clk 0:02:36]} 12. Nd3 {[%clk 0:02:11]}  Bxd2 {[%clk 0:02:25]} 13. Qxd2 {[%clk 0:02:11]}  dxc4 {[%clk 0:02:26]} 14. Nc5 {[%clk 0:02:05]}  Qc7 {[%clk 0:02:12]} 15. e4 {[%clk 0:02:01]}  Bg6 {[%clk 0:02:05]} 16. Qc3 {[%clk 0:02:00]}  cxb3 {[%clk 0:01:49]} 17. Qxb3 {[%clk 0:01:54]}  Nbd7 {[%clk 0:01:42]} 18. Ba3 {[%clk 0:01:33]}  Nxc5 {[%clk 0:01:38]} 19. Bxc5 {[%clk 0:01:33]}  Rfe8 {[%clk 0:01:39]} 20. Bb6 {[%clk 0:01:31]}  Qd7 {[%clk 0:01:37]} 21. Rfe1 {[%clk 0:01:28]}  e5 {[%clk 0:01:33]} 22. Rad1 {[%clk 0:01:24]}  exd4 {[%clk 0:01:32]} 23. Rxd4 {[%clk 0:01:13]}  Qe6 {[%clk 0:01:32]} 24. Qxe6 {[%clk 0:01:07]}  Rxe6 {[%clk 0:01:32]} 25. f3 {[%clk 0:01:07]}  Nd5 {[%clk 0:01:24]} 26. Bc5 {[%clk 0:00:41]}  b6 {[%clk 0:01:14]} 27. Ba3 {[%clk 0:00:41]}  Nb4 {[%clk 0:00:36]} 28. Bxb4 {[%clk 0:00:36]}  axb4 {[%clk 0:00:37]} 29. Rxb4 {[%clk 0:00:36]}  c5 {[%clk 0:00:38]} 30. Rc4 {[%clk 0:00:33]}  Rd6 {[%clk 0:00:36]} 31. Rb1 {[%clk 0:00:33]}  Ra6 {[%clk 0:00:32]} 32. Bf1 {[%clk 0:00:29]}  Ra5 {[%clk 0:00:24]} 33. f4 {[%clk 0:00:23]}  Rd4 {[%clk 0:00:20]} 34. Rxd4 {[%clk 0:00:20]}  cxd4 {[%clk 0:00:21]} 35. f5 {[%clk 0:00:21]}  Bh5 {[%clk 0:00:19]} 36. Bb5 {[%clk 0:00:21]}  Bf3 {[%clk 0:00:18]} 37. Re1 {[%clk 0:00:20]}  d3 {[%clk 0:00:17]} 38. Bxd3 {[%clk 0:00:20]}  Rxa4 {[%clk 0:00:17]} 39. Kf2 {[%clk 0:00:21]}  Bg4 {[%clk 0:00:15]} 40. Ke3 {[%clk 0:00:19]}  Ra3 {[%clk 0:00:13]} 41. Rb1 {[%clk 0:00:19]}  g6 {[%clk 0:00:10]} 42. f6 {[%clk 0:00:19]}  Ra2 {[%clk 0:00:07]} 43. h4 {[%clk 0:00:18]}  g5 {[%clk 0:00:07]} 44. hxg5 {[%clk 0:00:18]}  hxg5 {[%clk 0:00:08]} 45. Rb5 {[%clk 0:00:18]}  Kf8 {[%clk 0:00:06]} 46. Rxb6 {[%clk 0:00:17]}  Ke8 {[%clk 0:00:06]} 47. Rb8+ {[%clk 0:00:15]}  Kd7 {[%clk 0:00:06]} 48. Rb6 {[%clk 0:00:15]}  Be6 {[%clk 0:00:05]} 49. e5 {[%clk 0:00:15]}  Ra3 {[%clk 0:00:05]} 50. Kd4 {[%clk 0:00:16]}  Kc7 {[%clk 0:00:05]} 51. Rb4 {[%clk 0:00:15]}  Ra1 {[%clk 0:00:04]} 52. Rb5 {[%clk 0:00:14]}  Rg1 {[%clk 0:00:04]} 53. Be4 {[%clk 0:00:14]}  Rxg3 {[%clk 0:00:04]} 54. Rb7+ {[%clk 0:00:15]}  Kc8 {[%clk 0:00:04]} 55. Re7 {[%clk 0:00:15]}  Rg4 {[%clk 0:00:04]} 56. Ke3 {[%clk 0:00:14]}  Rf4 {[%clk 0:00:04]} 57. Bc6 {[%clk 0:00:13]}  Kd8 {[%clk 0:00:03]} 58. Be8 {[%clk 0:00:12]}  Kc8 {[%clk 0:00:02]} 59. Bxf7 {[%clk 0:00:12]}  Bxf7 {[%clk 0:00:03]} 60. Rxf7 {[%clk 0:00:12]}  Kd8 {[%clk 0:00:03]} 61. Rf8+ {[%clk 0:00:11]}  Kd7 {[%clk 0:00:04]} 62. Rg8 {[%clk 0:00:11]}  Ke6 {[%clk 0:00:03]} 63. Rxg5 {[%clk 0:00:12]}  Rf1 {[%clk 0:00:03]} 64. Ke2 {[%clk 0:00:08]}  Rf4 {[%clk 0:00:02]} 65. Kd3 {[%clk 0:00:08]}  Rf3+ {[%clk 0:00:02]} 66. Ke4 {[%clk 0:00:08]}  Rf1 {[%clk 0:00:02]} 67. Kd4 {[%clk 0:00:08]}  Rd1+ {[%clk 0:00:02]} 68. Kc5 {[%clk 0:00:09]}  Rc1+ {[%clk 0:00:02]} 69. Kb6 {[%clk 0:00:09]}  Rb1+ {[%clk 0:00:02]} 70. Kc7 {[%clk 0:00:10]}  Rd1 {[%clk 0:00:03]} 71. Rg7 {[%clk 0:00:08]}  Kxe5 {[%clk 0:00:03]} 72. f7 {[%clk 0:00:07]}  Rf1 {[%clk 0:00:02]} 73. Kd7 {[%clk 0:00:07]}  Rf6 {[%clk 0:00:01]} 74. Ke7 {[%clk 0:00:07]}  Re6+ {[%clk 0:00:01]} 75. Kf8 {[%clk 0:00:08]}  Rf6 {[%clk 0:00:01]} 76. Kg8 {[%clk 0:00:08]}  Rxf7 {[%clk 0:00:01]} 77. Rxf7 {[%clk 0:00:08]}  Ke6 {[%clk 0:00:02]} 78. Kg7 {[%clk 0:00:09]}  Ke5 {[%clk 0:00:02]} 79. Rf6 {[%clk 0:00:10]}  Ke4 {[%clk 0:00:03]} 80. Kg6 {[%clk 0:00:10]}  Ke5 {[%clk 0:00:04]} 81. Kg5 {[%clk 0:00:11]}  Ke4 {[%clk 0:00:04]} 82. Rf5 {[%clk 0:00:12]}  Ke3 {[%clk 0:00:04]} 83. Rf4 {[%clk 0:00:12]}  Kd3 {[%clk 0:00:04]} 84. Kf5 {[%clk 0:00:12]}  Ke3 {[%clk 0:00:05]} 85. Ke5 {[%clk 0:00:13]}  Kd3 {[%clk 0:00:06]} 86. Re4 {[%clk 0:00:14]}  Kc3 {[%clk 0:00:06]} 87. Rd4 {[%clk 0:00:14]}  Kb3 {[%clk 0:00:07]} 88. Kd5 {[%clk 0:00:15]}  Kc3 {[%clk 0:00:07]} 89. Kc5 {[%clk 0:00:16]}  Kc2 {[%clk 0:00:08]} 90. Kb4 {[%clk 0:00:15]}  Kb2 {[%clk 0:00:08]} 91. Rd2+ {[%clk 0:00:16]}  Ka1 {[%clk 0:00:08]} 92. Kb3 {[%clk 0:00:16]}  Kb1 {[%clk 0:00:08]} 93. Rd1# {[%clk 0:00:17]} 1-0


[Site "https://www.chess.com"]

[Event "Titled Tuesday Blitz November 22 Early 2022"]
[White "Gonzalez Vega, Alejandro"]
[Black "Arbunic Castro, Giovanna"]
[WhiteFideId "3510042"]
[BlackFideId "3400549"]
[WhiteElo "2280"]
[BlackElo "1951"]
[Result "1-0"]
[Round "04"]
[TimeControl "180+1"]
[Date "2022.11.23"]
[WhiteClock "0:00:16"]
[BlackClock "0:00:02"]

1. e4 {[%clk 0:03:00]}  g6 {[%clk 0:02:57]} 2. d4 {[%clk 0:03:00]}  Bg7 {[%clk 0:02:56]} 3. h4 {[%clk 0:02:57]}  h5 {[%clk 0:02:54]} 4. Be3 {[%clk 0:02:52]}  c5 {[%clk 0:02:53]} 5. c3 {[%clk 0:02:52]}  d5 {[%clk 0:02:51]} 6. e5 {[%clk 0:02:50]}  cxd4 {[%clk 0:02:47]} 7. cxd4 {[%clk 0:02:50]}  Nc6 {[%clk 0:02:46]} 8. Nc3 {[%clk 0:02:50]}  Nh6 {[%clk 0:02:42]} 9. Qb3 {[%clk 0:02:26]}  e6 {[%clk 0:02:39]} 10. Bd3 {[%clk 0:02:22]}  Ng4 {[%clk 0:02:03]} 11. Nf3 {[%clk 0:02:19]}  Nxe3 {[%clk 0:01:52]} 12. fxe3 {[%clk 0:02:17]}  Bh6 {[%clk 0:01:51]} 13. Ke2 {[%clk 0:02:11]}  O-O {[%clk 0:01:49]} 14. Raf1 {[%clk 0:02:05]}  f5 {[%clk 0:01:37]} 15. g3 {[%clk 0:02:01]}  Na5 {[%clk 0:01:21]} 16. Qc2 {[%clk 0:01:47]}  a6 {[%clk 0:01:18]} 17. b3 {[%clk 0:01:37]}  b5 {[%clk 0:01:15]} 18. Rc1 {[%clk 0:01:30]}  Bd7 {[%clk 0:01:14]} 19. Qd2 {[%clk 0:01:30]}  Rc8 {[%clk 0:01:12]} 20. Kf2 {[%clk 0:01:18]}  Qb6 {[%clk 0:01:08]} 21. Kg2 {[%clk 0:01:18]}  Rc7 {[%clk 0:00:43]} 22. Ne2 {[%clk 0:00:39]}  Rfc8 {[%clk 0:00:40]} 23. Rxc7 {[%clk 0:00:36]}  Rxc7 {[%clk 0:00:35]} 24. Rc1 {[%clk 0:00:32]}  Rxc1 {[%clk 0:00:20]} 25. Qxc1 {[%clk 0:00:30]}  Qc6 {[%clk 0:00:20]} 26. Qd2 {[%clk 0:00:26]}  Nb7 {[%clk 0:00:19]} 27. Ng5 {[%clk 0:00:23]}  a5 {[%clk 0:00:15]} 28. Nf4 {[%clk 0:00:21]}  Bxg5 {[%clk 0:00:14]} 29. hxg5 {[%clk 0:00:21]}  b4 {[%clk 0:00:14]} 30. Nxg6 {[%clk 0:00:20]}  Qc3 {[%clk 0:00:12]} 31. Qc2 {[%clk 0:00:19]}  a4 {[%clk 0:00:08]} 32. Nf4 {[%clk 0:00:19]}  axb3 {[%clk 0:00:07]} 33. axb3 {[%clk 0:00:19]}  Na5 {[%clk 0:00:07]} 34. Qxc3 {[%clk 0:00:19]}  bxc3 {[%clk 0:00:07]} 35. Bc2 {[%clk 0:00:19]}  Bb5 {[%clk 0:00:05]} 36. Kf2 {[%clk 0:00:18]}  Nc6 {[%clk 0:00:05]} 37. Ke1 {[%clk 0:00:17]}  Nb4 {[%clk 0:00:04]} 38. Kd1 {[%clk 0:00:17]}  Bf1 {[%clk 0:00:02]} 39. Nxh5 {[%clk 0:00:16]} 1-0


[Site "https://www.chess.com"]

[Event "Titled Tuesday Blitz November 22 Early 2022"]
[White "Grandelius, Nils"]
[Black "Svane, Rasmus"]
[WhiteFideId "1710400"]
[BlackFideId "4657101"]
[WhiteElo "2617"]
[BlackElo "2674"]
[Result "1/2-1/2"]
[Round "04"]
[TimeControl "180+1"]
[Date "2022.11.22"]
[WhiteClock "0:00:06"]
[BlackClock "0:00:21"]

1. Nf3 {[%clk 0:03:00]}  d5 {[%clk 0:02:59]} 2. d4 {[%clk 0:02:57]}  Nf6 {[%clk 0:03:00]} 3. c4 {[%clk 0:02:58]}  e6 {[%clk 0:03:00]} 4. Nc3 {[%clk 0:02:58]}  h6 {[%clk 0:02:58]} 5. Bf4 {[%clk 0:02:42]}  Bd6 {[%clk 0:02:58]} 6. Bg3 {[%clk 0:02:38]}  O-O {[%clk 0:02:56]} 7. e3 {[%clk 0:02:38]}  a6 {[%clk 0:02:57]} 8. Rc1 {[%clk 0:02:38]}  dxc4 {[%clk 0:02:45]} 9. Bxc4 {[%clk 0:02:38]}  b5 {[%clk 0:02:46]} 10. Bd3 {[%clk 0:02:37]}  Bb7 {[%clk 0:02:46]} 11. O-O {[%clk 0:02:34]}  Nbd7 {[%clk 0:02:46]} 12. Ne5 {[%clk 0:02:31]}  Qe7 {[%clk 0:02:42]} 13. a4 {[%clk 0:02:15]}  b4 {[%clk 0:02:39]} 14. Nb1 {[%clk 0:02:15]}  Rfd8 {[%clk 0:01:46]} 15. Nc6 {[%clk 0:02:12]}  Bxc6 {[%clk 0:01:45]} 16. Rxc6 {[%clk 0:02:13]}  Nb8 {[%clk 0:01:21]} 17. Rc4 {[%clk 0:02:01]}  Nbd7 {[%clk 0:01:18]} 18. Nd2 {[%clk 0:01:30]}  Bxg3 {[%clk 0:01:16]} 19. hxg3 {[%clk 0:01:31]}  c5 {[%clk 0:01:17]} 20. a5 {[%clk 0:01:24]}  cxd4 {[%clk 0:01:17]} 21. exd4 {[%clk 0:01:24]}  Qd6 {[%clk 0:01:08]} 22. Nf3 {[%clk 0:01:16]}  Rdb8 {[%clk 0:01:04]} 23. Qa4 {[%clk 0:01:07]}  Qd5 {[%clk 0:01:03]} 24. Rxb4 {[%clk 0:00:54]}  Rxb4 {[%clk 0:00:45]} 25. Qxb4 {[%clk 0:00:55]}  Rb8 {[%clk 0:00:45]} 26. Qc3 {[%clk 0:00:45]}  Qd6 {[%clk 0:00:40]} 27. Rc1 {[%clk 0:00:38]}  Nd5 {[%clk 0:00:36]} 28. Qd2 {[%clk 0:00:33]}  Nb4 {[%clk 0:00:34]} 29. Bf1 {[%clk 0:00:30]}  Nf6 {[%clk 0:00:32]} 30. Ne5 {[%clk 0:00:27]}  Nfd5 {[%clk 0:00:33]} 31. Nc4 {[%clk 0:00:20]}  Qd8 {[%clk 0:00:32]} 32. Ra1 {[%clk 0:00:18]}  Nc6 {[%clk 0:00:31]} 33. Ra3 {[%clk 0:00:16]}  Nf6 {[%clk 0:00:28]} 34. Rd3 {[%clk 0:00:15]}  Nb4 {[%clk 0:00:28]} 35. Rb3 {[%clk 0:00:14]}  Nfd5 {[%clk 0:00:29]} 36. Ne3 {[%clk 0:00:10]}  Qxa5 {[%clk 0:00:26]} 37. Nxd5 {[%clk 0:00:08]}  exd5 {[%clk 0:00:27]} 38. Bxa6 {[%clk 0:00:06]}  Qxa6 {[%clk 0:00:23]} 39. Rxb4 {[%clk 0:00:06]}  Qa1+ {[%clk 0:00:24]} 40. Kh2 {[%clk 0:00:06]}  Re8 {[%clk 0:00:24]} 41. Qf4 {[%clk 0:00:03]}  Qd1 {[%clk 0:00:23]} 42. Rb8 {[%clk 0:00:03]}  Qh5+ {[%clk 0:00:23]} 43. Kg1 {[%clk 0:00:04]}  Qd1+ {[%clk 0:00:20]} 44. Kh2 {[%clk 0:00:04]}  Qh5+ {[%clk 0:00:20]} 45. Kg1 {[%clk 0:00:05]}  Qd1+ {[%clk 0:00:21]} 46. Kh2 {[%clk 0:00:06]} 1/2-1/2


[Site "https://www.chess.com"]

[Event "Titled Tuesday Blitz November 22 Early 2022"]
[White "Gubanov, Oleg"]
[Black "Kopylov, Alexander A."]
[WhiteFideId "14115115"]
[BlackFideId "4164857"]
[WhiteElo "2158"]
[BlackElo "2436"]
[Result "0-1"]
[Round "04"]
[TimeControl "180+1"]
[Date "2022.11.23"]
[WhiteClock "0:01:28"]
[BlackClock "0:02:17"]

1. d4 {[%clk 0:03:00]}  Nf6 {[%clk 0:02:58]} 2. c4 {[%clk 0:03:01]}  e6 {[%clk 0:02:59]} 3. g4 {[%clk 0:03:01]}  h6 {[%clk 0:02:57]} 4. g5 {[%clk 0:02:51]}  hxg5 {[%clk 0:02:57]} 5. Bxg5 {[%clk 0:02:52]}  Be7 {[%clk 0:02:57]} 6. Nc3 {[%clk 0:02:51]}  d5 {[%clk 0:02:57]} 7. Bg2 {[%clk 0:02:43]}  c6 {[%clk 0:02:55]} 8. Nf3 {[%clk 0:02:42]}  Nbd7 {[%clk 0:02:56]} 9. c5 {[%clk 0:02:35]}  b6 {[%clk 0:02:55]} 10. cxb6 {[%clk 0:02:32]}  axb6 {[%clk 0:02:54]} 11. Qc2 {[%clk 0:02:32]}  c5 {[%clk 0:02:54]} 12. e4 {[%clk 0:02:28]}  O-O {[%clk 0:02:44]} 13. exd5 {[%clk 0:02:24]}  Nxd5 {[%clk 0:02:40]} 14. Bxe7 {[%clk 0:02:20]}  Qxe7 {[%clk 0:02:41]} 15. dxc5 {[%clk 0:02:06]}  Nxc5 {[%clk 0:02:39]} 16. Nxd5 {[%clk 0:01:59]}  exd5+ {[%clk 0:02:38]} 17. Kf1 {[%clk 0:02:00]}  Ba6+ {[%clk 0:02:31]} 18. Kg1 {[%clk 0:01:59]}  Rac8 {[%clk 0:02:32]} 19. h4 {[%clk 0:01:48]}  Nd3 {[%clk 0:02:29]} 20. Qd2 {[%clk 0:01:45]}  Qf6 {[%clk 0:02:27]} 21. Ng5 {[%clk 0:01:40]}  Nf4 {[%clk 0:02:21]} 22. Rh3 {[%clk 0:01:32]}  Nxh3+ {[%clk 0:02:18]} 23. Bxh3 {[%clk 0:01:28]}  Rc4 {[%clk 0:02:17]} 0-1


[Site "https://www.chess.com"]

[Event "Titled Tuesday Blitz November 22 Early 2022"]
[White "Horak, Martin"]
[Black "Artemenko, Oleg"]
[WhiteFideId "367095"]
[BlackFideId "14201798"]
[WhiteElo "2091"]
[BlackElo "2287"]
[Result "0-1"]
[Round "04"]
[TimeControl "180+1"]
[Date "2022.11.23"]
[WhiteClock "0:00:01"]
[BlackClock "0:01:15"]

1. e4 {[%clk 0:03:00]}  e6 {[%clk 0:02:59]} 2. d4 {[%clk 0:02:59]}  d5 {[%clk 0:03:00]} 3. Bd3 {[%clk 0:03:00]}  Nf6 {[%clk 0:02:57]} 4. e5 {[%clk 0:02:59]}  Nfd7 {[%clk 0:02:58]} 5. c3 {[%clk 0:02:58]}  c5 {[%clk 0:02:58]} 6. Nf3 {[%clk 0:02:59]}  Nc6 {[%clk 0:02:58]} 7. O-O {[%clk 0:02:55]}  Qb6 {[%clk 0:02:56]} 8. a3 {[%clk 0:02:55]}  cxd4 {[%clk 0:02:56]} 9. cxd4 {[%clk 0:02:54]}  Nxd4 {[%clk 0:02:56]} 10. Re1 {[%clk 0:02:34]}  Bc5 {[%clk 0:02:34]} 11. Nc3 {[%clk 0:02:10]}  Nb3 {[%clk 0:02:10]} 12. Na4 {[%clk 0:02:08]}  Bxf2+ {[%clk 0:02:10]} 13. Kf1 {[%clk 0:01:50]}  Qc7 {[%clk 0:02:02]} 14. Kxf2 {[%clk 0:01:03]}  Nxa1 {[%clk 0:01:59]} 15. Bd2 {[%clk 0:00:43]}  b5 {[%clk 0:01:52]} 16. Nc3 {[%clk 0:00:32]}  Nc5 {[%clk 0:01:51]} 17. Bxb5+ {[%clk 0:00:29]}  Bd7 {[%clk 0:01:51]} 18. Qxa1 {[%clk 0:00:27]}  Rb8 {[%clk 0:01:37]} 19. Bxd7+ {[%clk 0:00:26]}  Kxd7 {[%clk 0:01:36]} 20. Kg1 {[%clk 0:00:11]}  Nd3 {[%clk 0:01:34]} 21. Re2 {[%clk 0:00:12]}  Nxb2 {[%clk 0:01:33]} 22. Nd4 {[%clk 0:00:08]}  Nc4 {[%clk 0:01:32]} 23. Be1 {[%clk 0:00:08]}  Rb7 {[%clk 0:01:28]} 24. Qd1 {[%clk 0:00:05]}  Rhb8 {[%clk 0:01:25]} 25. Qa4+ {[%clk 0:00:06]}  Kc8 {[%clk 0:01:20]} 26. Nc6 {[%clk 0:00:03]}  Ra8 {[%clk 0:01:16]} 27. Nd4 {[%clk 0:00:02]}  Qd7 {[%clk 0:01:15]} 28. Ndb5 {[%clk 0:00:02]}  a6 {[%clk 0:01:13]} 29. Nd6+ {[%clk 0:00:02]}  Nxd6 {[%clk 0:01:14]} 30. Qxd7+ {[%clk 0:00:03]}  Kxd7 {[%clk 0:01:14]} 31. exd6 {[%clk 0:00:03]}  Kxd6 {[%clk 0:01:15]} 32. Bg3+ {[%clk 0:00:04]}  Kd7 {[%clk 0:01:15]} 33. Na4 {[%clk 0:00:03]}  Rc8 {[%clk 0:01:15]} 34. h4 {[%clk 0:00:03]}  Rc4 {[%clk 0:01:14]} 35. Nb2 {[%clk 0:00:02]}  Rc3 {[%clk 0:01:13]} 36. Be5 {[%clk 0:00:01]}  Rc1+ {[%clk 0:01:14]} 37. Kf2 {[%clk 0:00:01]}  f6 {[%clk 0:01:15]} 38. Bd4 {[%clk 0:00:01]}  e5 {[%clk 0:01:15]} 0-1


[Site "https://www.chess.com"]

[Event "Titled Tuesday Blitz November 22 Early 2022"]
[White "Izuzquiza Gonzalez, Javier"]
[Black "Ronka, Erik"]
[WhiteFideId "3101029"]
[BlackFideId "505080"]
[WhiteElo "2034"]
[BlackElo "2264"]
[Result "1/2-1/2"]
[Round "04"]
[TimeControl "180+1"]
[Date "2022.11.23"]
[WhiteClock "0:00:51"]
[BlackClock "0:00:13"]

1. d4 {[%clk 0:03:00]}  d5 {[%clk 0:03:00]} 2. c4 {[%clk 0:02:58]}  c6 {[%clk 0:03:00]} 3. Nf3 {[%clk 0:02:56]}  Nf6 {[%clk 0:03:00]} 4. g3 {[%clk 0:02:55]}  Bf5 {[%clk 0:02:58]} 5. Bg2 {[%clk 0:02:53]}  Nbd7 {[%clk 0:02:57]} 6. O-O {[%clk 0:02:52]}  e6 {[%clk 0:02:58]} 7. b3 {[%clk 0:02:52]}  h6 {[%clk 0:02:58]} 8. Nc3 {[%clk 0:02:52]}  Bd6 {[%clk 0:02:58]} 9. Bb2 {[%clk 0:02:50]}  O-O {[%clk 0:02:58]} 10. Nd2 {[%clk 0:02:49]}  Qe7 {[%clk 0:02:54]} 11. Re1 {[%clk 0:02:49]}  Ba3 {[%clk 0:02:51]} 12. Qc1 {[%clk 0:02:47]}  Bxb2 {[%clk 0:02:49]} 13. Qxb2 {[%clk 0:02:48]}  a5 {[%clk 0:02:45]} 14. e4 {[%clk 0:02:46]}  dxe4 {[%clk 0:02:46]} 15. Ndxe4 {[%clk 0:02:46]}  Nxe4 {[%clk 0:02:45]} 16. Nxe4 {[%clk 0:02:47]}  Bxe4 {[%clk 0:02:40]} 17. Bxe4 {[%clk 0:02:48]}  Nf6 {[%clk 0:02:40]} 18. Bg2 {[%clk 0:02:48]}  Rfd8 {[%clk 0:02:39]} 19. Rad1 {[%clk 0:02:44]}  Qb4 {[%clk 0:02:34]} 20. a3 {[%clk 0:02:40]}  Qb6 {[%clk 0:02:33]} 21. Qc3 {[%clk 0:02:22]}  Rd7 {[%clk 0:02:21]} 22. Re5 {[%clk 0:02:03]}  a4 {[%clk 0:01:42]} 23. b4 {[%clk 0:02:03]}  Rad8 {[%clk 0:01:41]} 24. c5 {[%clk 0:02:00]}  Qc7 {[%clk 0:01:41]} 25. f4 {[%clk 0:01:28]}  Nd5 {[%clk 0:00:55]} 26. Bxd5 {[%clk 0:01:26]}  Rxd5 {[%clk 0:00:55]} 27. Rxd5 {[%clk 0:01:24]}  Rxd5 {[%clk 0:00:56]} 28. Qc2 {[%clk 0:01:07]}  b5 {[%clk 0:00:56]} 29. cxb6 {[%clk 0:01:00]}  Qxb6 {[%clk 0:00:56]} 30. Qxa4 {[%clk 0:01:00]}  Rxd4 {[%clk 0:00:37]} 31. Rxd4 {[%clk 0:01:00]}  Qxd4+ {[%clk 0:00:38]} 32. Kg2 {[%clk 0:01:01]}  Qd5+ {[%clk 0:00:38]} 33. Kg1 {[%clk 0:00:59]}  g5 {[%clk 0:00:34]} 34. fxg5 {[%clk 0:00:57]}  hxg5 {[%clk 0:00:35]} 35. Qa5 {[%clk 0:00:55]}  Qd4+ {[%clk 0:00:30]} 36. Kg2 {[%clk 0:00:54]}  Qe4+ {[%clk 0:00:25]} 37. Kg1 {[%clk 0:00:52]}  Qe3+ {[%clk 0:00:17]} 38. Kg2 {[%clk 0:00:52]}  Qe2+ {[%clk 0:00:16]} 39. Kg1 {[%clk 0:00:51]}  Qe1+ {[%clk 0:00:16]} 40. Kg2 {[%clk 0:00:51]}  Qe2+ {[%clk 0:00:17]} 41. Kg1 {[%clk 0:00:51]}  Qe3+ {[%clk 0:00:17]} 42. Kg2 {[%clk 0:00:51]}  Qe2+ {[%clk 0:00:13]} 1/2-1/2


[Site "https://www.chess.com"]

[Event "Titled Tuesday Blitz November 22 Early 2022"]
[White "Jumabayev, Rinat"]
[Black "Zaksaite, Salomeja"]
[WhiteFideId "13702661"]
[BlackFideId "12801496"]
[WhiteElo "2561"]
[BlackElo "2079"]
[Result "1-0"]
[Round "04"]
[TimeControl "180+1"]
[Date "2022.11.23"]
[WhiteClock "0:00:20"]
[BlackClock "0:00:01"]

1. d4 {[%clk 0:02:55]}  Nf6 {[%clk 0:02:59]} 2. c4 {[%clk 0:02:41]}  g6 {[%clk 0:02:59]} 3. Nc3 {[%clk 0:02:39]}  d5 {[%clk 0:02:59]} 4. Nf3 {[%clk 0:02:28]}  Bg7 {[%clk 0:02:59]} 5. Bg5 {[%clk 0:02:28]}  O-O {[%clk 0:02:46]} 6. e3 {[%clk 0:02:25]}  c5 {[%clk 0:02:16]} 7. cxd5 {[%clk 0:02:24]}  cxd4 {[%clk 0:02:14]} 8. Qxd4 {[%clk 0:02:23]}  Nbd7 {[%clk 0:01:49]} 9. Rd1 {[%clk 0:02:13]}  Qa5 {[%clk 0:01:41]} 10. Qd2 {[%clk 0:02:06]}  Nb6 {[%clk 0:01:39]} 11. e4 {[%clk 0:02:04]}  Na4 {[%clk 0:01:33]} 12. e5 {[%clk 0:01:39]}  Nxc3 {[%clk 0:01:22]} 13. Qxc3 {[%clk 0:01:29]}  Qxc3+ {[%clk 0:01:05]} 14. bxc3 {[%clk 0:01:30]}  Ne4 {[%clk 0:01:05]} 15. Bxe7 {[%clk 0:01:31]}  Re8 {[%clk 0:00:58]} 16. d6 {[%clk 0:01:31]}  Bd7 {[%clk 0:00:53]} 17. Bc4 {[%clk 0:01:25]}  Rac8 {[%clk 0:00:39]} 18. Bb3 {[%clk 0:01:22]}  Rxc3 {[%clk 0:00:26]} 19. O-O {[%clk 0:01:18]}  Nc5 {[%clk 0:00:13]} 20. Bd5 {[%clk 0:01:17]}  Rxf3 {[%clk 0:00:02]} 21. Bxf3 {[%clk 0:01:15]}  Bxe5 {[%clk 0:00:03]} 22. Rfe1 {[%clk 0:01:16]}  f6 {[%clk 0:00:03]} 23. g3 {[%clk 0:01:04]}  Kg7 {[%clk 0:00:03]} 24. Bd5 {[%clk 0:01:00]}  b6 {[%clk 0:00:03]} 25. Kg2 {[%clk 0:00:59]}  a5 {[%clk 0:00:03]} 26. Re3 {[%clk 0:00:59]}  Ba4 {[%clk 0:00:03]} 27. Rd2 {[%clk 0:00:59]}  Bb5 {[%clk 0:00:03]} 28. h4 {[%clk 0:00:47]}  h5 {[%clk 0:00:02]} 29. Rd1 {[%clk 0:00:36]}  Bd7 {[%clk 0:00:03]} 30. Rb1 {[%clk 0:00:36]}  Rb8 {[%clk 0:00:02]} 31. f4 {[%clk 0:00:22]}  Bd4 {[%clk 0:00:02]} 32. Re2 {[%clk 0:00:22]}  Na4 {[%clk 0:00:01]} 33. Rc1 {[%clk 0:00:21]}  Bc5 {[%clk 0:00:02]} 34. Bb3 {[%clk 0:00:21]}  b5 {[%clk 0:00:01]} 35. Bxa4 {[%clk 0:00:20]}  bxa4 {[%clk 0:00:01]} 36. Rxc5 {[%clk 0:00:20]}  a3 {[%clk 0:00:01]} 37. Rc7 {[%clk 0:00:20]} 1-0


[Site "https://www.chess.com"]

[Event "Titled Tuesday Blitz November 22 Early 2022"]
[White "Kilic, Eray"]
[Black "Principe, Gerson"]
[WhiteFideId "44517173"]
[BlackFideId "3804550"]
[WhiteElo "2328"]
[BlackElo "2280"]
[Result "1-0"]
[Round "04"]
[TimeControl "180+1"]
[Date "2022.11.23"]
[WhiteClock "0:00:52"]
[BlackClock "0:00:05"]

1. e4 {[%clk 0:03:00]}  c6 {[%clk 0:02:59]} 2. Nc3 {[%clk 0:03:00]}  d5 {[%clk 0:02:59]} 3. Nf3 {[%clk 0:03:01]}  Bg4 {[%clk 0:02:56]} 4. h3 {[%clk 0:03:01]}  Bxf3 {[%clk 0:02:55]} 5. Qxf3 {[%clk 0:03:02]}  e6 {[%clk 0:02:55]} 6. d4 {[%clk 0:03:03]}  dxe4 {[%clk 0:02:48]} 7. Nxe4 {[%clk 0:03:04]}  Nd7 {[%clk 0:02:29]} 8. c3 {[%clk 0:03:02]}  Ngf6 {[%clk 0:02:29]} 9. Bd3 {[%clk 0:03:02]}  Nxe4 {[%clk 0:02:29]} 10. Bxe4 {[%clk 0:03:03]}  Bd6 {[%clk 0:02:24]} 11. O-O {[%clk 0:03:00]}  O-O {[%clk 0:02:21]} 12. Re1 {[%clk 0:02:57]}  Qc7 {[%clk 0:01:59]} 13. Bg5 {[%clk 0:02:51]}  h6 {[%clk 0:01:12]} 14. Bd2 {[%clk 0:02:14]}  Rae8 {[%clk 0:01:05]} 15. Bc2 {[%clk 0:02:10]}  Kh8 {[%clk 0:00:49]} 16. Re2 {[%clk 0:01:50]}  c5 {[%clk 0:00:47]} 17. dxc5 {[%clk 0:01:43]}  Nxc5 {[%clk 0:00:44]} 18. Rae1 {[%clk 0:01:41]}  a5 {[%clk 0:00:41]} 19. Qh5 {[%clk 0:01:31]}  Kg8 {[%clk 0:00:27]} 20. b4 {[%clk 0:01:04]}  Nd7 {[%clk 0:00:22]} 21. Bxh6 {[%clk 0:01:01]}  gxh6 {[%clk 0:00:20]} 22. Qxh6 {[%clk 0:01:02]}  f5 {[%clk 0:00:15]} 23. Rxe6 {[%clk 0:01:01]}  Rxe6 {[%clk 0:00:13]} 24. Rxe6 {[%clk 0:01:02]}  Ne5 {[%clk 0:00:10]} 25. Rxd6 {[%clk 0:00:58]}  Qg7 {[%clk 0:00:09]} 26. Bb3+ {[%clk 0:00:57]}  Nf7 {[%clk 0:00:08]} 27. Qh5 {[%clk 0:00:54]}  a4 {[%clk 0:00:05]} 28. Bxf7+ {[%clk 0:00:52]} 1-0


[Site "https://www.chess.com"]